bitfinex/quotes_BTCUSD_20250711
["timestamp","ask_amount","ask_price","bid_price","bid_amount"]
[1752251814715,0.672647,117260.0,117250.0,0.12503487]
[1752251814935,1.32902153,117260.0,117250.0,0.11447873]
[1752251815142,1.36812153,117260.0,117250.0,0.11447873]
[1752251815343,1.36812153,117260.0,117250.0,0.10595259]
[1752251815589,6.35959348,117260.0,117220.0,0.24261184]
[1752251815787,0.03411962,117230.0,117220.0,0.24261184]
[1752251816008,0.93847388,117230.0,117220.0,0.02244977]
[1752251816221,0.92141436,117230.0,117220.0,0.02244977]
[1752251816409,0.94433436,117230.0,117220.0,0.02244977]
[1752251816621,0.92443436,117230.0,117220.0,0.02244977]
[1752251816835,0.92443436,117230.0,117220.0,0.02344977]
[1752251817271,0.92443436,117230.0,117220.0,0.02244977]
[1752251817445,0.91057508,117230.0,117220.0,0.02344977]
[1752251817655,0.91157508,117230.0,117220.0,0.02244977]
[1752251818059,0.91257508,117230.0,117220.0,0.02244977]
[1752251818256,0.39604108,117230.0,117220.0,0.02244977]
[1752251818462,0.08953993,117230.0,117220.0,0.02244977]
[1752251818625,0.41941455,117230.0,117220.0,0.02447977]
[1752251818820,0.25526999,117230.0,117220.0,0.04575977]
[1752251819049,0.42587478,117230.0,117220.0,0.04575977]
[1752251819252,0.22114993,117230.0,117220.0,0.06515977]
[1752251819459,0.22967966,117230.0,117220.0,0.06515977]
[1752251820102,0.41734455,117230.0,117220.0,0.06515977]
[1752251820327,0.40069057,117230.0,117220.0,0.02244977]
[1752251820531,0.91722457,117230.0,117220.0,0.02244977]
[1752251820765,0.92024457,117230.0,117220.0,0.02244977]
[1752251821123,0.93914457,117230.0,117220.0,0.02244977]
[1752251821304,0.92024457,117230.0,117220.0,0.02244977]
[1752251823218,0.78652457,117230.0,117220.0,0.02244977]
[1752251823374,0.91722457,117230.0,117220.0,0.02244977]
[1752251824561,0.40371057,117230.0,117220.0,0.02244977]
[1752251824768,0.92024457,117230.0,117220.0,0.02244977]
[1752251825178,0.91722457,117230.0,117220.0,0.02244977]
[1752251825381,0.09636578,117230.0,117220.0,0.02244977]
[1752251825589,0.21091568,117230.0,117220.0,0.06455977]
[1752251825995,0.002,117230.0,117220.0,0.06455977]
[1752251826198,0.13572,117230.0,117220.0,0.06455977]
[1752251826406,0.002,117230.0,117220.0,0.760244]
[1752251826605,0.002,117230.0,117220.0,0.06455977]
[1752251826807,0.002,117230.0,117220.0,0.08162162]
[1752251826957,0.002,117230.0,117220.0,0.25224096]
[1752251827161,0.15077785,117240.0,117220.0,0.22367178]
[1752251827376,0.23620778,117240.0,117230.0,0.04098]
[1752251827556,0.21914993,117240.0,117230.0,0.04301]
[1752251827759,0.37430536,117250.0,117230.0,0.03890956]
[1752251828123,0.17655363,117250.0,117240.0,0.04068]
[1752251828372,0.16802536,117250.0,117240.0,0.05860956]
[1752251828778,0.1765537,117250.0,117240.0,0.05860956]
[1752251829214,0.16802536,117250.0,117240.0,0.05860956]
[1752251829714,0.02577716,117250.0,117240.0,0.05860956]
[1752251830139,0.21922136,117260.0,117250.0,0.0392]
[1752251830360,0.32170689,117260.0,117250.0,0.05710956]
[1752251830584,0.32170689,117260.0,117250.0,0.06031956]
[1752251830821,0.22774904,117260.0,117250.0,0.06031956]
[1752251831036,0.23627695,117260.0,117250.0,0.06031956]
[1752251831243,0.15077501,117260.0,117250.0,0.06031956]
[1752251831451,0.15930263,117260.0,117250.0,0.06031956]
[1752251831673,0.16783046,117260.0,117250.0,0.06031956]
[1752251831903,0.17635844,117260.0,117250.0,0.06031956]
[1752251832132,0.16783097,117260.0,117250.0,0.06031956]
[1752251832363,0.33839211,117260.0,117250.0,0.06031956]
[1752251832834,0.16783097,117260.0,117250.0,0.06031956]
[1752251833036,0.32133695,117260.0,117250.0,0.06031956]
[1752251833156,0.34752991,117260.0,117250.0,0.04011956]
[1752251833365,0.34952991,117260.0,117250.0,0.02111956]
[1752251834877,0.34752991,117260.0,117250.0,0.02111956]
[1752251835181,0.17696877,117260.0,117250.0,0.05761956]
[1752251835388,0.17696841,117260.0,117250.0,0.05761956]
[1752251835625,0.364585,117260.0,117250.0,0.05761956]
[1752251836056,0.19402379,117260.0,117250.0,0.05761956]
[1752251836776,0.16844043,117260.0,117250.0,0.05761956]
[1752251836979,0.16844043,117260.0,117250.0,0.05861956]
[1752251837187,0.16944043,117260.0,117250.0,0.05861956]
[1752251837584,0.16844043,117260.0,117250.0,0.05861956]
[1752251837750,0.17696805,117260.0,117250.0,0.05861956]
[1752251837979,0.18549581,117260.0,117250.0,0.05861956]
[1752251838362,0.17696805,117260.0,117250.0,0.05861956]
[1752251838563,0.02619296,117260.0,117250.0,0.05861956]
[1752251838780,0.13368,117260.0,117250.0,0.05861956]
[1752251839002,0.14220754,117260.0,117250.0,0.05861956]
[1752251839203,0.14220747,117260.0,117250.0,0.05861956]
[1752251839456,0.13368,117260.0,117250.0,0.05861956]
[1752251840019,0.15073523,117260.0,117250.0,0.05861956]
[1752251840221,0.14050292,117260.0,117250.0,0.05861956]
[1752251840420,0.00852754,117260.0,117250.0,0.05861956]
[1752251840624,1.2432151,117270.0,117250.0,0.03981956]
[1752251840785,0.913406,117270.0,117260.0,0.04051]
[1752251840984,0.913406,117270.0,117260.0,0.05841956]
[1752251841831,0.913406,117270.0,117260.0,0.05842825]
[1752251842030,0.91390276,117270.0,117260.0,0.05842825]
[1752251843112,0.91490276,117270.0,117260.0,0.0669563]
[1752251843315,0.91390276,117270.0,117260.0,0.05842825]
[1752251843747,0.91390276,117270.0,117260.0,0.05942825]
[1752251843953,0.91390276,117270.0,117260.0,0.2015963]
[1752251844218,0.91390276,117270.0,117260.0,0.19306825]
[1752251844429,0.91390276,117270.0,117260.0,0.38921318]
[1752251844638,0.91390276,117270.0,117260.0,0.91427135]
[1752251844850,0.88981755,117270.0,117260.0,1.01424213]
[1752251845200,0.88981755,117270.0,117260.0,1.03982013]
[1752251846368,0.88981755,117270.0,117260.0,0.37259083]
[1752251846576,0.88981755,117270.0,117260.0,0.24171164]
[1752251846785,0.88981755,117270.0,117260.0,0.39522247]
[1752251847204,0.88981755,117270.0,117260.0,0.39522261]
[1752251847406,0.88981755,117270.0,117260.0,0.4037503]
[1752251847810,0.88981755,117270.0,117260.0,0.40375045]
[1752251848022,0.88981755,117270.0,117260.0,0.41227807]
[1752251848159,0.88981755,117270.0,117260.0,0.40375045]
[1752251848360,0.88981755,117270.0,117260.0,0.05942488]
[1752251848564,1.09647199,117270.0,117260.0,0.15274488]
[1752251848789,1.50237841,117270.0,117260.0,0.01690488]
[1752251848970,0.97731738,117270.0,117260.0,0.01690488]
[1752251849177,0.95826382,117270.0,117260.0,0.04132488]
[1752251849373,0.95826382,117270.0,117260.0,0.06102488]
[1752251849733,0.96679056,117270.0,117260.0,0.06102488]
[1752251849873,0.98584441,117270.0,117260.0,0.06102488]
[1752251850071,0.98584434,117270.0,117260.0,0.06102488]
[1752251850271,0.97561298,117270.0,117260.0,0.04182488]
[1752251851101,0.96708602,117270.0,117260.0,0.04182488]
[1752251851349,0.9585592,117270.0,117260.0,0.05972488]
[1752251851800,0.87958619,117270.0,117260.0,0.05972488]
[1752251853513,0.87958619,117270.0,117260.0,0.238814]
[1752251853735,0.87958619,117270.0,117260.0,0.25586945]
[1752251853910,0.87958619,117270.0,117260.0,0.26439707]
[1752251854147,0.87958619,117270.0,117260.0,0.26439699]
[1752251854827,0.85550157,117270.0,117260.0,0.2558696]
[1752251855469,0.85550157,117270.0,117260.0,0.27292476]
[1752251855648,0.85550157,117270.0,117260.0,0.26439721]
[1752251855863,0.85550157,117270.0,117260.0,0.27893806]
[1752251856276,0.85550157,117270.0,117260.0,0.88090199]
[1752251860372,0.84527197,117270.0,117260.0,0.88090199]
[1752251860751,0.84527197,117270.0,117260.0,0.36436799]
[1752251861175,0.84527197,117270.0,117260.0,0.19508142]
[1752251862077,0.84740197,117270.0,117260.0,0.15226142]
[1752251862261,0.84527197,117270.0,117260.0,0.15750142]
[1752251862462,0.84527197,117270.0,117260.0,0.19570142]
[1752251863031,0.84527197,117270.0,117260.0,0.20422947]
[1752251863450,0.84527197,117270.0,117260.0,0.20422826]
[1752251863661,0.84527197,117270.0,117260.0,0.21275624]
[1752251863870,0.84527197,117270.0,117260.0,0.1798]
[1752251864072,0.84527197,117270.0,117260.0,0.19569869]
[1752251864426,0.84527197,117270.0,117260.0,0.20422674]
[1752251864627,1.36696597,117270.0,117260.0,0.01689869]
[1752251864876,1.79713993,117270.0,117260.0,0.01689869]
[1752251865386,1.62659333,117270.0,117260.0,0.01689869]
[1752251865748,1.79713993,117270.0,117260.0,0.01689869]
[1752251866091,1.79713993,117270.0,117260.0,0.01691145]
[1752251866532,1.62659333,117270.0,117260.0,0.01691145]
[1752251866740,1.79713993,117270.0,117260.0,0.01691145]
[1752251867146,1.62659325,117270.0,117260.0,0.01691145]
[1752251867910,1.101532,117270.0,117260.0,0.01691145]
[1752251868115,1.11005859,117270.0,117260.0,0.01691145]
[1752251868322,1.1185857,117270.0,117260.0,0.01691145]
[1752251868518,1.11858563,117270.0,117260.0,0.01691145]
[1752251868955,1.12711281,117270.0,117260.0,0.01691145]
[1752251869376,1.11858563,117270.0,117260.0,0.01691145]
[1752251869597,1.11858563,117270.0,117260.0,0.01692218]
[1752251870334,1.10835435,117270.0,117260.0,0.01692218]
[1752251870952,1.1168816,117270.0,117260.0,0.01692218]
[1752251871158,1.10835435,117270.0,117260.0,0.01692218]
[1752251871787,1.09982724,117270.0,117260.0,0.01692218]
[1752251872254,1.09130028,117270.0,117260.0,0.01692218]
[1752251872609,1.09982731,117270.0,117260.0,0.01692218]
[1752251873441,1.10835456,117270.0,117260.0,0.01692218]
[1752251873673,1.27890116,117270.0,117260.0,0.01692218]
[1752251873818,1.09982731,117270.0,117260.0,0.01692218]
[1752251874031,1.09982724,117270.0,117260.0,0.01692218]
[1752251875060,1.06721416,117270.0,117260.0,0.01692218]
[1752251875467,1.03776098,117270.0,117260.0,0.01692218]
[1752251875694,0.78687067,117270.0,117260.0,0.26353465]
[1752251875867,0.78687067,117270.0,117260.0,0.91478865]
[1752251876255,0.78687067,117270.0,117260.0,0.90626111]
[1752251876443,0.78687067,117270.0,117260.0,0.3982548]
[1752251876653,0.78687067,117270.0,117260.0,0.38972711]
[1752251876858,0.78687067,117270.0,117260.0,0.38972718]
[1752251877079,0.78687067,117270.0,117260.0,0.38119935]
[1752251877282,0.78687067,117270.0,117260.0,0.37267137]
[1752251877476,0.78687067,117270.0,117260.0,0.05886218]
[1752251877717,0.78900067,117270.0,117260.0,0.19362218]
[1752251877885,0.76747579,117270.0,117260.0,0.20215023]
[1752251878090,0.76747579,117270.0,117260.0,0.19354218]
[1752251880271,0.76960579,117270.0,117260.0,0.19354218]
[1752251880492,0.95550271,117270.0,117260.0,0.01692218]
[1752251880706,1.468453,117270.0,117260.0,0.01692218]
[1752251880918,0.96044603,117270.0,117260.0,0.01692218]
[1752251881120,0.75724537,117270.0,117260.0,0.23132332]
[1752251881268,0.75724537,117270.0,117260.0,0.23985123]
[1752251881471,0.75724537,117270.0,117260.0,0.06086218]
[1752251881674,0.76577204,117270.0,117260.0,0.06086218]
[1752251881848,0.78495574,117270.0,117260.0,0.15154218]
[1752251882130,0.75937537,117270.0,117260.0,0.15358218]
[1752251882350,0.75937537,117270.0,117260.0,0.17558218]
[1752251882588,0.76790211,117270.0,117260.0,0.17558218]
[1752251882794,0.75937537,117270.0,117260.0,0.17558218]
[1752251883002,0.75724537,117270.0,117260.0,0.19428218]
[1752251883423,0.76790204,117270.0,117260.0,0.19428218]
[1752251883829,0.75937537,117270.0,117260.0,0.15358218]
[1752251884035,0.76790204,117270.0,117260.0,0.15358218]
[1752251884257,0.75937537,117270.0,117260.0,0.15358218]
[1752251884880,0.74552164,117270.0,117260.0,0.15358218]
[1752251885182,0.74339164,117270.0,117260.0,0.20311023]
[1752251885363,0.74339164,117270.0,117260.0,0.19458218]
[1752251885725,0.74339164,117270.0,117260.0,0.20311023]
[1752251885916,0.74339164,117270.0,117260.0,0.38219935]
[1752251886126,0.74339164,117270.0,117260.0,0.42232333]
[1752251886324,0.74339164,117270.0,117260.0,0.41379579]
[1752251886522,0.74339164,117270.0,117260.0,0.24516417]
[1752251886734,0.74339164,117270.0,117260.0,0.39657991]
[1752251886928,0.74339164,117270.0,117260.0,0.38805215]
[1752251887184,0.74339164,117270.0,117260.0,0.06006218]
[1752251887346,0.74339164,117270.0,117260.0,0.19442218]
[1752251888018,0.71376694,117270.0,117260.0,0.19442218]
[1752251888409,0.71376694,117270.0,117260.0,0.19439905]
[1752251888637,0.71589694,117270.0,117260.0,0.19439905]
[1752251889595,0.71589694,117270.0,117260.0,0.15659905]
[1752251889798,0.72442361,117270.0,117260.0,0.15659905]
[1752251890199,0.72442361,117270.0,117260.0,0.02223905]
[1752251890543,0.71419352,117270.0,117260.0,0.15643905]
[1752251890883,0.70566685,117270.0,117260.0,0.15643905]
[1752251891082,0.70566685,117270.0,117260.0,0.39971371]
[1752251891304,0.70353685,117270.0,117260.0,0.40824154]
[1752251891750,0.70353685,117270.0,117260.0,0.39971371]
[1752251891952,0.70353685,117270.0,117260.0,0.22062466]
[1752251892367,0.70548685,117270.0,117260.0,0.21742466]
[1752251892545,0.70548685,117270.0,117260.0,0.17882466]
[1752251894979,0.69163346,117270.0,117260.0,0.17882466]
[1752251895189,0.68968346,117270.0,117260.0,0.4091414]
[1752251895352,0.68968346,117270.0,117260.0,0.93836663]
[1752251895931,0.68968346,117270.0,117260.0,0.96143502]
[1752251896265,0.67028958,117270.0,117260.0,0.96143502]
[1752251896470,0.67028958,117270.0,117260.0,1.04686495]
[1752251896697,0.67028958,117270.0,117260.0,1.38686495]
[1752251896880,0.67028958,117270.0,117260.0,1.37408557]
[1752251897535,0.67028958,117270.0,117260.0,1.48093669]
[1752251897947,0.66006121,117270.0,117260.0,1.48033669]
[1752251898217,0.66006121,117270.0,117260.0,1.48233669]
[1752251898348,0.66006121,117270.0,117260.0,1.48633669]
[1752251900317,0.64983278,117270.0,117260.0,1.48633669]
[1752251900683,0.64983278,117270.0,117260.0,1.48503669]
[1752251902742,0.64983278,117270.0,117260.0,1.4850029]
[1752251904182,0.64983278,117270.0,117260.0,1.5850029]
[1752251904385,0.63044187,117270.0,117260.0,1.5850029]
[1752251904959,0.43505432,117270.0,117260.0,1.5850029]
[1752251905159,0.43505432,117270.0,117260.0,1.47815178]
[1752251906990,0.43505432,117270.0,117260.0,1.42815178]
[1752251907418,0.43505432,117270.0,117260.0,1.47815178]
[1752251908003,0.4248267,117270.0,117260.0,1.47815178]
[1752251909006,0.42032756,117270.0,117260.0,1.47815178]
[1752251910421,0.41009994,117270.0,117260.0,1.5850029]
[1752251910918,0.41009994,117270.0,117260.0,1.7895229]
[1752251911354,0.41009994,117270.0,117260.0,1.78950953]
[1752251914047,0.00524675,117270.0,117260.0,1.78950953]
[1752251914259,0.002,117290.0,117280.0,0.58825184]
[1752251914474,0.00204966,117290.0,117280.0,1.39189312]
[1752251914888,0.00204966,117290.0,117280.0,1.47095237]
[1752251915095,0.00204966,117290.0,117280.0,1.55086067]
[1752251915096,1e-08,117290.0,117280.0,1.55086067]
[1752251915311,1e-08,117290.0,117280.0,1.55286067]
[1752251915729,1e-08,117290.0,117280.0,1.55686067]
[1752251916149,1e-08,117290.0,117280.0,1.55286067]
[1752251916361,1e-08,117290.0,117280.0,1.55886067]
[1752251916805,1e-08,117290.0,117280.0,2.07530652]
[1752251917015,1e-08,117290.0,117280.0,1.99934727]
[1752251917429,1e-08,117290.0,117280.0,1.99734727]
[1752251917631,1e-08,117290.0,117280.0,1.48590142]
[1752251918266,0.002,117310.0,117300.0,0.26061839]
[1752251918464,0.002,117310.0,117300.0,1.18547967]
[1752251918698,0.002,117310.0,117300.0,1.18849967]
[1752251918835,0.002,117310.0,117300.0,1.21403919]
[1752251920311,0.002,117310.0,117300.0,1.21703919]
[1752251921046,0.002,117310.0,117300.0,1.22908947]
[1752251921439,0.002,117310.0,117300.0,1.21325945]
[1752251922294,0.002,117310.0,117300.0,1.79175558]
[1752251922517,0.002,117310.0,117300.0,1.86755561]
[1752251922925,0.002,117310.0,117300.0,2.20755561]
[1752251923156,1e-08,117310.0,117300.0,2.20755561]
[1752251924017,1e-08,117310.0,117300.0,1.67905948]
[1752251924225,0.07044627,117330.0,117320.0,0.53604411]
[1752251924436,0.07053109,117330.0,117320.0,1.41958017]
[1752251924845,0.07053109,117330.0,117320.0,1.49840016]
[1752251925069,0.07053109,117330.0,117320.0,0.96990391]
[1752251925269,0.07053109,117330.0,117320.0,1.44816217]
[1752251925468,0.07053109,117330.0,117320.0,1.46756217]
[1752251925760,0.07153109,117330.0,117320.0,1.46756217]
[1752251926124,0.07053109,117330.0,117320.0,1.46756217]
[1752251926314,0.07053109,117330.0,117320.0,1.46856217]
[1752251926515,0.00208482,117330.0,117320.0,1.46856217]
[1752251926738,0.00208482,117330.0,117320.0,1.48736217]
[1752251927015,0.00208482,117330.0,117320.0,1.48836217]
[1752251927428,0.00208482,117330.0,117320.0,2.0168583]
[1752251927857,0.00208482,117330.0,117320.0,2.08139915]
[1752251928169,0.00208482,117330.0,117320.0,2.03139915]
[1752251928371,0.00208482,117330.0,117320.0,2.08139915]
[1752251928598,0.002,117350.0,117340.0,0.19601071]
[1752251928759,0.002,117350.0,117340.0,1.56253503]
[1752251928964,0.002,117350.0,117340.0,1.56555503]
[1752251929167,0.002,117350.0,117340.0,1.48512477]
[1752251929361,0.002,117350.0,117340.0,1.5109182]
[1752251929580,0.002,117350.0,117340.0,1.52545905]
[1752251930160,0.002,117350.0,117340.0,1.52745905]
[1752251930842,0.002,117350.0,117340.0,1.52945905]
[1752251931052,0.10036466,117370.0,117360.0,0.21051815]
[1752251931255,0.09237224,117370.0,117360.0,1.09792673]
[1752251931454,0.05223224,117370.0,117360.0,1.10771252]
[1752251931657,0.00422919,117370.0,117360.0,1.10980252]
[1752251931864,0.00214919,117370.0,117360.0,1.11282252]
[1752251932063,0.00214919,117370.0,117360.0,1.2478199]
[1752251932507,0.00214919,117370.0,117360.0,1.77631603]
[1752251932712,0.00214919,117370.0,117360.0,1.81421603]
[1752251932915,0.00214919,117370.0,117360.0,1.2857199]
[1752251933342,0.00214919,117370.0,117360.0,1.81421603]
[1752251933717,0.00214919,117370.0,117360.0,0.75722377]
[1752251933886,0.00214919,117370.0,117360.0,1.81421603]
[1752251934084,0.0002,117380.0,117370.0,0.24840145]
[1752251934294,0.0002,117380.0,117370.0,1.25700761]
[1752251934750,0.0002,117380.0,117370.0,1.28255861]
[1752251935913,0.0002,117380.0,117370.0,1.28455861]
[1752251936542,0.0002,117380.0,117370.0,1.28755861]
[1752251938109,5.538e-05,117380.0,117370.0,1.28755861]
[1752251938363,5.538e-05,117380.0,117370.0,1.18165682]
[1752251939107,0.07188627,117400.0,117390.0,0.21046807]
[1752251939226,0.11446627,117400.0,117390.0,1.12001618]
[1752251940256,0.11446627,117400.0,117390.0,1.13704886]
[1752251940459,0.65147963,117400.0,117390.0,0.14700108]
[1752251940664,0.6514797,117400.0,117390.0,0.28096108]
[1752251940930,1.44428147,117400.0,117390.0,0.14700108]
[1752251941094,1.42384227,117400.0,117390.0,0.14700108]
[1752251941305,1.42384227,117400.0,117390.0,0.04133931]
[1752251941522,1.41532475,117400.0,117390.0,0.04133931]
[1752251941747,1.41532475,117400.0,117390.0,0.09129999]
[1752251941953,1.41532475,117400.0,117390.0,0.09130064]
[1752251942788,0.83455816,117400.0,117390.0,0.09130064]
[1752251943211,0.83624816,117400.0,117390.0,0.09130064]
[1752251943405,0.62296042,117400.0,117390.0,0.09121986]
[1752251943628,0.80183583,117400.0,117390.0,0.01570753]
[1752251943834,0.63147808,117400.0,117390.0,0.1213693]
[1752251944043,0.14673468,117400.0,117390.0,0.1213693]
[1752251944254,0.33412797,117400.0,117390.0,0.1223693]
[1752251944471,0.79331889,117400.0,117390.0,0.1223693]
[1752251945415,0.79331889,117400.0,117390.0,0.01670753]
[1752251945589,0.79331889,117400.0,117390.0,0.01570753]
[1752251945802,0.78480123,117400.0,117390.0,0.01570753]
[1752251947086,0.78480123,117400.0,117390.0,0.1213693]
[1752251947294,0.76436126,117400.0,117390.0,0.19696221]
[1752251947521,0.76436126,117400.0,117390.0,0.09130044]
[1752251948146,0.77287892,117400.0,117390.0,0.09130044]
[1752251948350,0.29665282,117400.0,117390.0,0.09130044]
[1752251948560,0.10925996,117400.0,117390.0,0.09130044]
[1752251948858,0.44780793,117400.0,117390.0,0.01570753]
[1752251949080,0.9240336,117400.0,117390.0,0.01570753]
[1752251949299,0.75367578,117400.0,117390.0,0.01570753]
[1752251949756,0.74515804,117400.0,117390.0,0.01570753]
[1752251950013,0.73664038,117400.0,117390.0,0.01570753]
[1752251950236,0.7451579,117400.0,117390.0,0.01570753]
[1752251950455,0.24337996,117400.0,117390.0,0.01570753]
[1752251950672,0.02383003,117400.0,117390.0,0.29174156]
[1752251950891,0.02383003,117400.0,117390.0,0.1213693]
[1752251951106,0.01324994,117400.0,117390.0,0.11418038]
[1752251951363,0.00133988,117400.0,117390.0,0.30880569]
[1752251951582,0.00133988,117400.0,117390.0,0.12139628]
[1752251951806,0.00133988,117400.0,117390.0,0.46590435]
[1752251952068,0.00133988,117400.0,117390.0,0.46590442]
[1752251952267,0.00133988,117400.0,117390.0,0.47442252]
[1752251952477,0.00133988,117400.0,117390.0,0.46260625]
[1752251952685,0.05180733,117410.0,117390.0,0.45408793]
[1752251952885,0.05230453,117410.0,117400.0,0.10566177]
[1752251953090,0.05281453,117410.0,117400.0,0.12139628]
[1752251953651,0.06133111,117410.0,117400.0,0.12139628]
[1752251953850,0.06133103,117410.0,117400.0,0.12139628]
[1752251954055,0.05281453,117410.0,117400.0,0.12139628]
[1752251954270,0.06133111,117410.0,117400.0,0.12139628]
[1752251954491,0.06133118,117410.0,117400.0,0.12139628]
[1752251954742,0.06984797,117410.0,117400.0,0.12139628]
[1752251954969,0.06133118,117410.0,117400.0,0.12139628]
[1752251955394,0.05281453,117410.0,117400.0,0.12139628]
[1752251955821,0.06984768,117410.0,117400.0,0.12139628]
[1752251956278,0.06133103,117410.0,117400.0,0.12139628]
[1752251956490,0.05281453,117410.0,117400.0,0.12139628]
[1752251957150,0.05281453,117410.0,117400.0,0.12142102]
[1752251957363,0.04089299,117410.0,117400.0,0.12192207]
[1752251957877,0.04089299,117410.0,117400.0,0.12193228]
[1752251958304,0.04089291,117410.0,117400.0,0.12193228]
[1752251958496,0.03237641,117410.0,117400.0,0.12193228]
[1752251958919,0.03237641,117410.0,117400.0,0.01576946]
[1752251959546,0.04089291,117410.0,117400.0,0.01576946]
[1752251959976,0.05792657,117410.0,117400.0,0.01576946]
[1752251960815,0.03237641,117410.0,117400.0,0.01576946]
[1752251961043,0.05792628,117410.0,117400.0,0.01576946]
[1752251961265,1.00483751,117420.0,117400.0,0.12207073]
[1752251961492,0.02555002,117410.0,117400.0,0.12207073]
[1752251961711,0.01703322,117410.0,117400.0,0.12207073]
[1752251961935,0.03367996,117410.0,117400.0,0.12207073]
[1752251962155,0.00886502,117420.0,117400.0,0.14789073]
[1752251962382,0.00051,117410.0,117400.0,0.12729073]
[1752251962845,0.0003491,117420.0,117400.0,0.32676636]
[1752251963066,0.01738088,117420.0,117400.0,0.17805412]
[1752251963281,0.01738088,117420.0,117410.0,0.13404]
[1752251963497,0.00937488,117420.0,117410.0,0.14985497]
[1752251963702,0.03492338,117420.0,117410.0,0.14985497]
[1752251964147,0.52221696,117420.0,117410.0,0.14985497]
[1752251964350,0.53069832,117420.0,117410.0,0.20996701]
[1752251964555,0.05192074,117420.0,117410.0,0.2257739]
[1752251964762,0.5896306,117420.0,117410.0,0.2257739]
[1752251965186,0.58111439,117420.0,117410.0,0.14984689]
[1752251965459,0.58963053,117420.0,117410.0,0.25614816]
[1752251965895,0.58111439,117420.0,117410.0,0.25614816]
[1752251966327,0.53921439,117420.0,117410.0,0.25614816]
[1752251966774,0.02637289,117420.0,117410.0,0.25614816]
[1752251966993,0.02586289,117420.0,117410.0,0.26136816]
[1752251967421,0.02586289,117420.0,117410.0,0.28136816]
[1752251967626,0.02586289,117420.0,117410.0,0.30166816]
[1752251967807,0.01202623,117420.0,117410.0,0.30166816]
[1752251968049,0.65731466,117430.0,117410.0,0.30166816]
[1752251968231,0.00051,117420.0,117410.0,0.26136816]
[1752251968680,0.00902578,117420.0,117410.0,0.26136816]
[1752251968853,0.00051,117420.0,117410.0,0.26136816]
[1752251969088,0.00902578,117420.0,117410.0,0.26136816]
[1752251969723,0.68368088,117420.0,117410.0,0.12210816]
[1752251969956,0.71676488,117420.0,117410.0,0.25598816]
[1752251970167,0.71676488,117420.0,117410.0,0.14968689]
[1752251970375,0.52583571,117420.0,117410.0,0.14968689]
[1752251970624,0.51335192,117420.0,117410.0,0.25598816]
[1752251971033,0.02605827,117420.0,117410.0,0.25598816]
[1752251971258,0.00362257,117420.0,117410.0,0.25598816]
[1752251971483,0.00362257,117420.0,117410.0,0.12210816]
[1752251971484,0.50794828,117420.0,117410.0,0.12210816]
[1752251971705,0.70991124,117420.0,117410.0,0.12210816]
[1752251971931,0.79534117,117420.0,117410.0,0.12210816]
[1752251972159,0.79534117,117420.0,117410.0,0.01580689]
[1752251972617,0.22106025,117410.0,117400.0,0.10630127]
[1752251972835,0.85192084,117410.0,117400.0,0.10630127]
[1752251973305,1.76464442,117410.0,117400.0,0.10630127]
[1752251973735,1.76464442,117410.0,117400.0,0.07584728]
[1752251974378,1.27735077,117410.0,117400.0,0.07584728]
[1752251974595,1.27735077,117410.0,117400.0,0.07684728]
[1752251975263,1.25647077,117410.0,117400.0,0.07584728]
[1752251975480,1.11403383,117410.0,117400.0,0.07584728]
[1752251975710,0.64029702,117410.0,117390.0,0.14920127]
[1752251975931,0.81915727,117410.0,117400.0,0.10946127]
[1752251976154,0.02660038,117410.0,117400.0,0.10630127]
[1752251976386,0.82779443,117410.0,117400.0,0.10630127]
[1752251976637,0.00851745,117400.0,117390.0,0.15236127]
[1752251976840,0.00851745,117400.0,117390.0,0.15442127]
[1752251977051,0.01703482,117400.0,117390.0,0.15442127]
[1752251977473,0.00851737,117400.0,117390.0,0.15442127]
[1752251977688,0.63936745,117410.0,117390.0,0.15442127]
[1752251977904,0.64256355,117410.0,117390.0,0.15442127]
[1752251978107,0.63404639,117410.0,117390.0,0.15442127]
[1752251978891,0.01703344,117410.0,117400.0,0.04546]
[1752251979099,0.52136097,117410.0,117400.0,0.04752]
[1752251979342,0.52141097,117410.0,117400.0,0.13484]
[1752251979575,0.52141097,117410.0,117400.0,0.15062841]
[1752251979794,0.51289396,117410.0,117400.0,0.22644086]
[1752251980261,0.52141097,117410.0,117400.0,0.22644086]
[1752251980492,0.52992805,117410.0,117400.0,0.22643425]
[1752251980707,0.69175501,117410.0,117400.0,0.22643425]
[1752251981327,0.69175501,117410.0,117400.0,0.09159425]
[1752251981526,0.51119289,117410.0,117400.0,0.09159425]
[1752251981769,0.52136127,117410.0,117400.0,0.09159425]
[1752251981981,0.51484411,117410.0,117400.0,0.09159425]
[1752251982189,0.52336119,117410.0,117400.0,0.09159425]
[1752251982317,0.69370443,117410.0,117400.0,0.09159425]
[1752251982781,0.51484454,117410.0,117400.0,0.09159425]
[1752251983276,0.68518778,117410.0,117400.0,0.09159425]
[1752251983701,0.80390084,117410.0,117400.0,0.09159425]
[1752251983906,1.35964076,117410.0,117400.0,0.09159425]
[1752251984114,1.35964076,117410.0,117400.0,0.01578193]
[1752251984406,1.69964076,117410.0,117400.0,0.01578193]
[1752251984963,1.69964076,117410.0,117400.0,0.00726682]
[1752251985169,1.69764076,117410.0,117400.0,0.00726682]
[1752251985392,0.18740897,117390.0,117380.0,0.07781232]
[1752251985784,0.80974262,117390.0,117380.0,0.07781232]
[1752251985992,0.85124262,117390.0,117380.0,0.07781232]
[1752251986640,0.80974262,117390.0,117380.0,0.07881232]
[1752251986834,0.80974262,117390.0,117380.0,0.07981232]
[1752251988023,0.78738433,117390.0,117380.0,0.07981232]
[1752251988261,0.79590279,117390.0,117380.0,0.07981232]
[1752251989660,0.78738433,117390.0,117380.0,0.07981232]
[1752251990068,0.93995252,117390.0,117380.0,0.07981232]
[1752251990501,0.93995252,117390.0,117380.0,0.004]
[1752251990917,0.93995252,117390.0,117380.0,0.003]
[1752251991118,0.94095252,117390.0,117380.0,0.002]
[1752251991526,0.93073145,117390.0,117380.0,0.002]
[1752251992333,0.93273145,117390.0,117380.0,0.002]
[1752251993577,1.53459326,117380.0,117370.0,0.07581232]
[1752251993791,1.12421035,117380.0,117360.0,0.06929444]
[1752251994002,0.93016478,117370.0,117360.0,0.06929444]
[1752251994446,0.93016478,117370.0,117360.0,0.002]
[1752251994939,0.93029161,117370.0,117360.0,0.002]
[1752251995178,0.88649161,117370.0,117360.0,0.002]
[1752251995382,0.88649161,117370.0,117360.0,0.00691]
[1752251995383,0.57285041,117370.0,117360.0,0.00691]
[1752251995597,0.01816629,117370.0,117360.0,0.04991]
[1752251995869,0.15292615,117370.0,117360.0,0.04991]
[1752251996066,0.14440631,117370.0,117360.0,0.04991]
[1752251996269,0.00112683,117370.0,117360.0,0.04991]
[1752251996476,0.00212683,117370.0,117360.0,0.04991]
[1752251996894,0.00112683,117370.0,117360.0,0.04991]
[1752251997120,0.02613826,117390.0,117370.0,0.18743424]
[1752251997324,0.04585256,117400.0,117390.0,0.0416]
[1752251997325,0.00851723,117400.0,117390.0,0.0416]